bitfinex-derivatives/quotes_SOLF0:USTF0_20241027
["timestamp","ask_amount","ask_price","bid_price","bid_amount"]
[1730037451424,4.52,176.01,175.9,2.4727]
[1730037451915,2.844,176.0,175.96,2.8444]
[1730037453116,4.52,176.01,175.9,2.4727]
[1730037453322,7.3637,176.01,175.9,2.4727]
[1730037453727,7.3637,176.01,175.98,2.8441]
[1730037453921,4.52,176.01,175.75,55.3]
[1730037454224,2.8453,175.92,175.81,2.4181]
[1730037454425,4.52,175.93,175.87,2.8459]
[1730037454821,2.8453,175.91,175.87,2.8459]
[1730037455020,4.52,175.93,175.88,2.8456]
[1730037455421,4.52,175.93,175.82,4.52]
[1730037457224,2.8451,175.92,175.88,2.8457]
[1730037459033,4.52,175.93,175.82,4.52]
[1730037460733,2.8453,175.91,175.88,2.8457]
[1730037462234,4.52,175.93,175.82,4.52]
[1730037462539,2.8452,175.92,175.89,2.8455]
[1730037464435,4.52,175.93,175.89,2.8455]
[1730037464732,2.8453,175.91,175.89,2.8455]
[1730037466533,7.3651,175.93,175.9,2.8454]
[1730037466728,4.52,175.93,175.9,2.8454]
[1730037467537,2.8452,175.92,175.89,2.8456]
[1730037468036,4.52,175.93,175.89,2.8456]
[1730037469231,2.8452,175.92,175.89,2.8456]
[1730037469833,2.8452,175.92,175.89,2.8455]
[1730037470931,2.8455,175.9,175.87,2.8458]
[1730037471138,4.52,175.93,175.87,2.8458]
[1730037471338,4.52,175.93,175.83,5.6982]
[1730037471536,4.52,175.93,175.88,2.8457]
[1730037471537,2.8454,175.91,175.88,2.8457]
[1730037472444,2.8454,175.91,175.89,2.8456]
[1730037472843,4.52,175.93,175.89,2.8456]
[1730037473045,2.8452,175.92,175.89,2.8456]
[1730037479244,1.0,176.0,175.84,4.52]
[1730037479447,2.8441,175.99,175.84,4.52]
[1730037479648,5.52,176.0,175.84,4.52]
[1730037480052,2.8443,175.98,175.94,2.8447]
[1730037480238,5.52,176.0,175.94,2.8447]
[1730037480846,5.52,176.0,175.92,2.8451]
[1730037481046,1.0,176.0,175.89,4.52]
[1730037481253,4.52,175.99,175.9,1.1751]
[1730037481553,4.52,175.99,175.95,2.8445]
[1730037481753,2.8442,175.98,175.9,1.1751]
[1730037483654,2.8442,175.98,175.95,2.8446]
[1730037485161,4.52,175.99,175.9,1.1751]
[1730037485353,7.3641,175.99,175.96,2.8444]
[1730037485972,2.8441,175.99,175.96,2.8444]
[1730037486265,2.8443,175.98,175.94,2.8447]
[1730037486458,4.52,176.0,175.94,2.8447]
[1730037486659,4.52,176.0,175.9,1.1751]
[1730037486964,2.8443,175.98,175.95,2.8446]
[1730037488668,2.8441,175.99,175.96,2.8444]
[1730037489669,10.5342386,176.07,175.9,1.1751]
[1730037489971,4.52,176.06,175.99,2.8439]
[1730037490570,2.8436,176.02,175.99,2.8439]
[1730037490764,7.3636,176.02,175.99,2.8439]
[1730037491069,84.90419879,176.08,176.0,2.8437]
[1730037491070,2.8434,176.03,176.0,2.8437]
[1730037491276,7.3634,176.03,176.0,2.8437]
[1730037492978,2.8436,176.02,175.99,2.8439]
[1730037493371,2.8436,176.02,175.94,2.4094]
[1730037493578,2.8436,176.02,176.0,2.8438]
[1730037496576,2.8434,176.03,175.98,2.8441]
[1730037496776,2.8434,176.03,175.94,2.4094]
[1730037497277,2.8434,176.03,176.0,2.8437]
[1730037497679,2.8434,176.03,175.94,2.4094]
[1730037498286,2.8434,176.03,175.96,2.8444]
[1730037498478,2.8434,176.03,175.94,2.4094]
[1730037498974,2.8434,176.03,176.0,2.8437]
[1730037500380,4.52,176.04,176.0,2.8437]
[1730037500581,2.8436,176.02,176.0,2.8437]
[1730037500779,2.8436,176.02,175.99,2.8439]
[1730037501272,2.8436,176.02,175.94,2.4094]
[1730037502275,2.8436,176.02,176.0,2.8438]
[1730037504583,4.52,176.04,176.0,2.8438]
[1730037504886,2.8434,176.03,176.0,2.8438]
[1730037507176,4.52,176.04,176.03,2.8434]
[1730037508087,84.90419879,176.08,176.03,2.8434]
[1730037508280,2.8429,176.06,176.03,2.8434]
[1730037510690,4.5,176.07,175.94,8.0988]
[1730037510890,2.8433,176.04,175.94,8.0988]
[1730037511190,5.6829,176.15,175.95,5.6892]
[1730037511394,4.5,176.14,175.95,5.6892]
[1730037511692,2.8427,176.08,176.05,2.843]
[1730037511892,4.5,176.09,175.96,1.2111]
[1730037512280,4.5,176.09,175.97,4.5]
[1730037512988,4.5,176.09,175.98,4.5]
[1730037513185,2.8429,176.06,176.03,2.8432]
[1730037513388,4.5,176.09,175.97,4.5]
[1730037513782,2.8432,176.05,176.02,2.8435]
[1730037514792,2.843,176.06,176.01,2.8436]
[1730037514992,4.5,176.09,176.01,2.8436]
[1730037515595,2.8432,176.05,176.01,2.8436]
[1730037516886,4.5,176.09,176.01,2.8436]
[1730037518085,4.5,176.09,176.04,2.8432]
[1730037518601,4.5,176.09,175.98,5.6883]
[1730037518792,4.5,176.09,176.05,2.843]
[1730037518991,4.5,176.09,175.98,5.6883]
[1730037519994,7.3425,176.09,176.06,2.8428]
[1730037520391,2.8425,176.09,176.06,2.8428]
[1730037520795,2.8425,176.09,176.06,2.8429]
[1730037521897,4.5,176.1,176.07,2.8426]
[1730037523095,4.5,176.13,176.02,3.6159]
[1730037523302,4.5,176.13,176.09,2.8423]
[1730037523597,4.5,176.14,176.02,3.6159]
[1730037523804,2.8418,176.13,176.09,2.8423]
[1730037524299,4.5,176.14,176.11,2.842]
[1730037524503,4.5,176.15,176.05,4.5]
[1730037524808,2.842,176.12,176.02,9.3028]
[1730037524994,4.5,176.15,176.05,4.5]
[1730037525199,4.5,176.15,176.02,3.6159]
[1730037525903,2.8425,176.09,176.05,2.8429]
[1730037526299,2.8425,176.09,176.02,3.6159]
[1730037526504,2.8428,176.07,176.04,2.8432]
[1730037527012,2.8426,176.08,176.05,2.843]
[1730037529413,4.5,176.11,176.02,3.6159]
[1730037530605,4.5,176.11,176.04,2.8431]
[1730037531308,2.8427,176.07,176.04,2.8431]
[1730037531494,7.3427,176.07,176.04,2.8431]
[1730037533406,7.3427,176.07,176.02,3.6159]
[1730037533407,4.5,176.07,176.02,2.449]
[1730037534310,2.8429,176.06,176.03,2.8434]
[1730037536110,4.5,176.07,176.02,2.449]
[1730037536819,2.8432,176.04,176.02,2.449]
[1730037537517,2.8432,176.04,175.98,1.2074]
[1730037537815,2.8432,176.04,176.01,2.8436]
[1730037539119,2.8432,176.04,175.98,1.2074]
[1730037539120,2.8431,176.05,176.02,2.8434]
[1730037541520,2.8435,176.02,176.0,2.8438]
[1730037541820,4.5,176.07,175.98,1.2074]
[1730037542020,4.5,176.06,175.98,1.2074]
[1730037542226,4.5,176.05,175.98,1.2074]
[1730037542525,2.8435,176.03,176.0,2.8438]
[1730037548531,4.5,176.05,176.0,2.8438]
[1730037548739,2.8436,176.02,176.0,2.8438]
[1730037549927,4.5,176.05,175.98,1.2074]
[1730037550140,4.5,176.05,175.99,2.8439]
[1730037550342,4.5,176.05,175.98,1.2074]
[1730037550840,2.8436,176.02,175.99,2.8439]
[1730037554142,2.8436,176.02,176.0,2.8438]
[1730037555534,2.8435,176.02,176.0,2.8438]
[1730037556542,4.5,176.03,175.98,1.2074]
[1730037557140,2.8434,176.03,176.0,2.8437]
[1730037557341,7.3434,176.03,176.0,2.8437]
[1730037558540,2.8432,176.04,176.01,2.8436]
[1730037558745,4.5,176.04,175.98,1.2074]
[1730037559050,4.5,176.04,175.99,1.2042]
[1730037559845,4.5,176.04,176.03,2.8434]
[1730037560449,7.343,176.06,176.03,2.8434]
[1730037562155,2.8431,176.05,176.03,2.8434]
[1730037562355,4.5,176.06,176.01,2.8436]
[1730037563248,4.5,176.06,175.99,1.2042]
[1730037563455,4.5,176.06,176.0,2.8437]
[1730037564243,4.5,176.06,175.99,1.2042]
[1730037564450,4.5,176.06,176.01,2.8437]
[1730037565255,2.8434,176.03,176.01,2.8437]
[1730037565559,4.5,176.02,176.01,2.8437]
[1730037568260,4.5,176.02,176.0,2.8437]
[1730037568855,4.5,176.02,175.97,1.2302]
[1730037568856,2.844,176.0,175.96,2.8443]
[1730037569161,7.344,176.0,175.96,2.8443]
[1730037569752,7.344,176.0,175.97,2.8442]
[1730037572253,2.844,175.99,175.97,2.8442]
[1730037573159,2.844,175.99,175.96,2.8445]
[1730037573551,2.8442,175.98,175.96,2.8445]
[1730037580277,4.5,176.0,175.94,1.183]
[1730037581267,2.8441,175.99,175.96,2.8444]
[1730037581666,4.5,176.0,175.94,1.183]
[1730037582469,2.844,175.99,175.94,1.183]
[1730037583070,2.844,175.99,175.96,2.8443]
[1730037583671,2.8443,175.98,175.95,2.8445]
[1730037583872,2.8443,175.98,175.94,1.183]
[1730037584267,2.8443,175.98,175.95,2.8445]
[1730037584574,2.8443,175.98,175.94,1.183]
[1730037584964,2.8443,175.98,175.95,2.8446]
[1730037585775,2.8443,175.98,175.94,1.183]
[1730037585967,2.8443,175.98,175.96,2.8444]
[1730037586969,4.5,176.0,175.94,1.183]
[1730037587175,4.5,176.0,175.95,2.8446]
[1730037587372,4.5,176.0,175.94,1.183]
[1730037587373,4.5,176.0,175.92,1.2535]
[1730037587778,2.8446,175.96,175.93,2.8449]
[1730037588171,4.5,176.0,175.92,1.2535]
[1730037588775,5.6861,176.06,175.93,1.1947]
[1730037589074,4.5,176.05,175.93,1.1947]
[1730037589684,4.5,176.05,175.96,2.8444]
[1730037590078,2.8441,175.99,175.96,2.8444]
[1730037590275,7.3441,175.99,175.96,2.8444]
[1730037590473,4.5,175.99,175.98,2.8442]
[1730037590883,4.5,175.99,175.93,1.1947]
[1730037591077,4.5,175.99,175.97,2.8442]
[1730037600491,5.6861,176.06,175.93,1.1947]
[1730037600685,4.48,176.05,175.99,2.8439]
[1730037600895,4.48,176.05,175.93,1.1947]
[1730037601091,2.8434,176.03,175.96,2.8444]
[1730037601295,2.8434,176.03,175.93,6.8844]
[1730037601593,4.48,176.05,175.93,1.1947]
[1730037601896,2.8433,176.04,176.01,2.8436]
[1730037602300,4.48,176.05,176.02,2.8434]
[1730037602999,2.8433,176.04,176.02,2.8434]
[1730037604498,7.3226,176.08,176.05,2.8429]
[1730037604700,10.54893626,176.13,175.96,4.48]
[1730037604907,4.48,176.12,175.96,4.48]
[1730037605601,2.8427,176.08,176.04,2.8431]
[1730037605795,4.48,176.08,175.96,4.48]
[1730037606399,2.8427,176.07,176.04,2.8431]
[1730037607707,2.8431,176.05,175.96,4.48]
[1730037607908,4.48,176.08,175.96,4.48]
[1730037608206,2.8433,176.04,176.01,2.8436]
[1730037608801,4.48,176.08,175.95,1.1581]
[1730037609005,4.48,176.08,175.95,5.6381]
[1730037609702,2.8434,176.03,176.0,2.8438]
[1730037612512,4.48,176.04,175.95,1.1581]
[1730037613620,2.8434,176.03,175.95,1.1581]
[1730037614529,4.48,176.04,175.95,1.1581]
[1730037614733,16.24133347,176.12,175.95,1.1581]
[1730037614945,10.55723347,176.13,175.95,1.1581]
[1730037615235,4.48,176.12,175.95,1.1581]
[1730037617331,2.8423,176.1,176.07,2.8426]
[1730037618335,2.8425,176.09,176.06,2.8428]
[1730037620344,2.8423,176.1,176.03,2.4901]
[1730037620834,2.8423,176.1,176.07,2.8427]
[1730037631619,2.8424,176.09,176.07,2.8427]
[1730037636929,4.48,176.12,176.06,2.8428]
[1730037637127,4.48,176.12,176.03,2.4901]
[1730037637829,4.48,176.12,175.99,4.48]
[1730037638015,4.48,176.12,175.99,5.7578]
[1730037638726,2.8428,176.07,176.04,2.8431]
[1730037638929,2.8428,176.07,175.99,5.7578]
[1730037639317,4.48,176.12,176.0,5.6876]
[1730037639318,2.8424,176.1,176.0,5.6876]
[1730037639528,4.48,176.12,176.0,5.6876]
[1730037639827,4.48,176.12,176.05,2.8429]
[1730037640028,2.8426,176.08,176.05,2.8429]
[1730037640427,4.48,176.12,176.05,2.8429]
[1730037640625,4.48,176.12,176.03,2.8432]
[1730037640828,4.48,176.12,175.99,5.7578]
[1730037641417,2.8428,176.07,176.04,2.8431]
[1730037644621,4.48,176.11,176.06,2.8428]
[1730037644933,4.48,176.12,176.06,2.8428]
[1730037645134,4.48,176.11,176.06,2.8428]
[1730037645630,4.48,176.11,175.99,5.7578]
[1730037646027,2.8425,176.09,175.99,5.7578]
[1730037646230,4.48,176.11,175.99,1.2778]
[1730037646530,4.48,176.11,176.06,2.8428]
[1730037647123,2.8425,176.09,176.07,2.8426]
[1730037647330,4.48,176.11,176.0,4.48]
[1730037647930,2.8423,176.1,176.08,2.8425]
[1730037648131,5.6825,176.17,176.08,2.8425]
[1730037648331,4.48,176.16,176.08,2.8425]
[1730037649336,2.8423,176.1,176.08,2.8425]
[1730037649637,4.48,176.12,176.06,2.8428]
[1730037649829,2.8428,176.07,176.0,4.48]
[1730037650331,2.79210826,176.2,175.99,1.2778]
[1730037650332,4.48,176.08,175.99,1.2778]
[1730037650535,4.48,176.07,175.99,1.2778]
[1730037650729,4.48,176.06,175.99,1.2778]
[1730037651437,7.323,176.06,176.03,2.8434]
[1730037657542,4.48,176.06,175.99,1.2778]
[1730037657739,4.48,176.09,175.99,1.2778]
[1730037657938,4.48,176.09,176.08,2.8426]
[1730037658241,4.48,176.13,176.03,4.48]
[1730037658443,8.49504795,176.19,176.04,2.3873]
[1730037658740,4.48,176.18,176.09,2.8424]
[1730037659535,15.02106833,176.18,176.09,2.8424]
[1730037659839,4.48,176.18,176.09,2.8424]
[1730037660030,15.02106833,176.18,176.09,2.8424]
[1730037660234,15.02106833,176.18,176.05,1.2472]
[1730037660235,2.8421,176.11,176.08,2.8425]
[1730037660833,2.8421,176.12,176.07,2.8427]
[1730037661031,2.8421,176.12,176.05,1.2472]
[1730037661537,2.8421,176.12,176.09,2.8423]
[1730037661843,4.48,176.14,176.09,2.8423]
[1730037662041,4.48,176.14,176.05,1.2472]
[1730037662342,4.48,176.14,176.1,2.8422]
[1730037663240,2.8418,176.13,176.11,2.842]
[1730037663432,2.8418,176.13,176.05,1.2472]
[1730037664036,7.3216,176.14,176.05,1.2472]
[1730037664247,7.3216,176.14,176.12,2.8419]
[1730037664457,2.8416,176.14,176.12,2.8419]
[1730037664949,2.8416,176.14,176.07,4.48]
[1730037665129,2.8416,176.14,176.11,2.842]
[1730037665536,4.48,176.17,176.07,4.48]
[1730037665537,2.8414,176.16,176.07,4.48]
[1730037665739,4.48,176.17,176.07,4.48]
[1730037667240,2.8412,176.17,176.14,2.8415]
[1730037667434,4.48,176.18,176.08,2.89490973]
[1730037667853,4.48,176.21,176.08,2.89490973]
[1730037668446,2.8412,176.17,176.07,4.48]
[1730037669247,2.8412,176.17,176.14,2.8416]
[1730037669547,2.8412,176.17,176.05,1.2472]
[1730037669548,4.48,176.17,176.09,4.48]
[1730037669747,4.48,176.17,176.11,2.842]
[1730037670149,2.8417,176.14,176.11,2.842]
[1730037670741,2.8417,176.14,176.12,2.8419]
[1730037671645,2.8417,176.14,176.11,2.842]
[1730037671839,4.48,176.17,176.07,4.48]
[1730037672045,4.48,176.17,176.05,5.7272]
[1730037672249,4.48,176.17,176.07,2.8426]
[1730037672448,2.8422,176.11,176.07,2.8426]
[1730037672839,2.8422,176.11,176.05,1.2472]
[1730037673047,4.48,176.13,176.05,1.2472]
[1730037673362,2.8423,176.1,176.05,1.2472]
[1730037673759,4.48,176.13,176.05,1.2472]
[1730037673954,2.8424,176.09,176.07,2.8427]
[1730037674464,2.8426,176.08,176.05,1.2472]
[1730037674660,2.8426,176.08,176.06,2.8429]
[1730037674862,4.48,176.13,176.06,2.8429]
[1730037675457,4.48,176.12,176.06,2.8429]
[1730037675943,4.48,176.12,176.05,1.2472]
[1730037676163,4.48,176.12,176.05,4.0902]
[1730037676365,4.48,176.12,176.05,1.2472]
[1730037676565,2.8428,176.07,176.05,1.2472]
[1730037676760,2.8428,176.07,176.05,4.0902]
[1730037676964,4.48,176.12,176.05,1.2472]
[1730037677190,2.8423,176.1,176.05,1.2472]
[1730037677662,2.8423,176.1,176.07,2.8426]
[1730037677858,4.48,176.12,176.05,1.2472]
[1730037678054,2.8425,176.09,176.05,1.2472]
[1730037678262,2.8425,176.09,176.06,2.8428]
[1730037679276,2.8425,176.09,176.07,2.8427]
[1730037680784,2.8421,176.11,176.05,1.2472]
[1730037681165,4.48,176.12,176.05,1.2472]
[1730037682650,2.8424,176.1,176.06,2.8428]
[1730037682855,4.48,176.12,176.04,2.3873]
[1730037682856,4.48,176.12,176.04,1.1911]
[1730037683556,2.8427,176.08,176.05,2.843]
[1730037684154,2.8427,176.08,176.04,1.1911]
[1730037684415,2.8427,176.08,176.06,2.8429]
[1730037684780,2.843,176.06,176.03,2.8433]
[1730037685461,2.843,176.06,176.04,2.8432]
[1730037690160,2.843,176.06,175.99,1.2624]
[1730037690363,2.8431,176.05,175.99,1.2624]
[1730037691265,2.8431,176.05,176.03,2.8433]
[1730037694263,4.46,176.08,175.99,1.2624]
[1730037694472,2.8435,176.02,175.99,1.2624]
[1730037695066,2.8435,176.02,176.0,2.8438]
[1730037695367,2.8434,176.03,175.99,1.2624]
[1730037695565,4.46,176.04,176.02,2.8434]
[1730037695771,4.46,176.04,175.99,1.2624]
[1730037696567,4.46,176.04,176.03,2.8434]
[1730037700461,4.46,176.04,176.01,2.8436]
[1730037701366,2.8434,176.03,176.01,2.8436]
[1730037701568,4.46,176.04,176.01,2.8436]
[1730037702169,7.3033,176.04,176.01,2.8436]
[1730037702563,2.8435,176.03,176.0,2.8438]
[1730037704368,4.46,176.04,176.02,2.8434]
[1730037704776,4.46,176.04,175.99,1.2624]
[1730037705870,4.46,176.04,176.02,2.8434]
[1730037706669,4.46,176.04,175.99,1.2624]
[1730037706869,4.46,176.04,176.03,2.8434]
[1730037707573,55.22,176.16,175.99,1.2624]
[1730037707873,4.46,176.15,175.99,5.7224]
[1730037709091,181.12559209,176.2,176.0,5.6876]
[1730037709275,4.46,176.19,176.0,5.6876]
[1730037709478,2.8419,176.13,176.0,5.6876]
[1730037709985,2.8419,176.12,176.09,2.8423]
[1730037711283,2.8419,176.13,176.09,2.8423]
[1730037711484,4.46,176.14,176.05,2.4254]
[1730037711680,4.46,176.14,176.05,3.6465]
[1730037712087,7.3017,176.14,176.1,2.8421]
[1730037712385,178.25536157,176.2,176.06,2.89134825]
[1730037712580,4.46,176.19,176.08,4.46]
[1730037713182,7.3009,176.19,176.15,2.8413]
[1730037713482,4.46,176.19,176.08,4.46]
[1730037714285,2.8412,176.17,176.08,4.46]
[1730037716279,2.8412,176.17,176.14,2.8415]
[1730037717384,2.8413,176.16,176.13,2.8417]
[1730037719785,4.46,176.19,176.11,2.842]
[1730037720382,2.8416,176.15,176.11,2.842]
[1730037720701,2.8416,176.15,176.08,4.46]
[1730037720702,4.46,176.19,176.08,4.46]
[1730037720989,2.8417,176.14,176.08,4.46]
[1730037721190,2.8417,176.14,176.1,2.8421]
[1730037721693,2.842,176.12,176.09,2.8424]
[1730037721994,4.46,176.19,176.09,2.8424]
[1730037722293,2.8417,176.14,176.1,2.8422]
[1730037724191,2.8415,176.15,176.12,2.8418]
[1730037724393,4.46,176.19,176.06,4.46]
[1730037724785,2.8416,176.14,176.11,2.842]
[1730037727185,2.8414,176.16,176.09,2.8423]
[1730037727388,4.46,176.19,176.06,4.46]
[1730037727792,2.8415,176.15,176.09,2.8423]
[1730037727994,2.8415,176.15,176.06,4.46]
[1730037728396,2.8416,176.14,176.11,2.842]
[1730037729395,4.46,176.19,176.06,4.46]
[1730037729595,4.46,176.19,176.05,3.6465]
[1730037730394,2.8423,176.1,176.07,2.8426]
[1730037730595,4.46,176.13,176.05,3.6465]
[1730037731196,2.8419,176.12,176.09,2.8423]
[1730037731395,4.46,176.13,176.05,3.6465]
[1730037731791,7.3018,176.13,176.1,2.8421]
[1730037733097,2.8418,176.13,176.1,2.8421]
[1730037734999,2.8418,176.13,176.11,2.8421]
[1730037739298,2.8421,176.12,176.08,2.8425]
[1730037739501,2.8421,176.12,176.05,3.6465]
[1730037740402,2.8421,176.12,176.09,2.8423]
[1730037741998,4.46,176.16,176.05,3.6465]
[1730037742196,4.46,176.16,176.05,2.4254]
[1730037742395,4.46,176.16,176.05,1.2082]
[1730037742599,4.46,176.16,176.02,4.46]
[1730037743300,2.8427,176.08,176.02,4.46]
[1730037744203,2.8427,176.08,175.99,3.6588]
[1730037744204,2.8427,176.08,176.0,4.46]
[1730037744596,2.8427,176.08,176.05,2.843]
[1730037745305,2.8428,176.07,176.04,2.8431]
[1730037745502,4.46,176.1,175.99,3.6588]
[1730037746013,2.843,176.06,175.99,3.6588]
[1730037746809,2.843,176.06,176.03,2.8434]
[1730037749208,2.8426,176.08,176.05,2.8429]
[1730037749405,4.46,176.1,175.99,3.6588]
[1730037749803,4.46,176.1,176.0,5.6877]
[1730037750003,4.46,176.1,176.01,4.46]
[1730037750313,4.46,176.1,176.07,2.8426]
[1730037750512,4.46,176.12,176.07,2.8426]
[1730037750998,2.8423,176.1,176.07,2.8426]
[1730037751499,4.46,176.12,176.01,4.46]
[1730037751705,2.8424,176.09,176.06,2.8428]
[1730037752898,4.46,176.12,176.01,4.46]
[1730037753106,2.843,176.06,176.03,2.8433]
[1730037753309,4.46,176.12,175.99,8.1188]
[1730037754516,2.843,176.06,176.03,2.8434]
[1730037755507,2.8431,176.05,176.03,2.8434]
[1730037756305,2.8431,176.05,175.99,8.1188]
[1730037756306,4.46,176.08,175.99,8.1188]
[1730037756504,4.46,176.08,176.02,2.8434]
[1730037757005,4.46,176.08,175.99,8.1188]
[1730037757209,4.46,176.08,176.01,2.8436]
[1730037757611,4.46,176.08,175.99,3.6588]
[1730037758117,2.843,176.06,176.04,2.8431]
[1730037758610,4.46,176.08,176.04,2.8431]
[1730037758805,2.8428,176.07,176.04,2.8431]
[1730037759006,4.46,176.08,176.04,2.8431]
[1730037760412,2.8429,176.06,176.03,2.8433]
[1730037760611,4.46,176.08,175.99,3.6588]
[1730037760910,4.46,176.08,176.04,2.8431]
[1730037761416,2.8429,176.06,176.04,2.8431]
[1730037761806,2.8428,176.07,176.04,2.8431]
[1730037762018,4.46,176.08,176.03,2.8433]
[1730037762417,2.843,176.06,176.03,2.8433]
[1730037766019,2.843,176.06,176.0,2.0]
[1730037766919,2.8428,176.07,176.0,2.0]
[1730037768226,4.46,176.08,176.03,2.8432]
[1730037768426,2.8429,176.06,176.03,2.8432]
[1730037770936,4.46,176.08,176.0,2.0]
[1730037771133,2.8429,176.06,176.04,2.8432]
[1730037771330,2.8429,176.06,176.0,2.0]
[1730037771636,2.8429,176.06,176.03,2.8433]
[1730037772138,2.8432,176.05,176.02,2.8434]
[1730037775340,2.8428,176.07,176.04,2.8432]
[1730037776232,4.46,176.08,176.03,2.8433]
[1730037776233,2.843,176.06,176.03,2.8433]
[1730037780342,4.46,176.08,176.0,1.0]
[1730037781142,2.8437,176.01,176.0,1.0]
[1730037786452,5.72682703,176.01,176.0,1.0]
[1730037789551,2.8437,176.01,176.0,1.0]
[1730037790349,7.2837,176.01,176.0,1.0]
[1730037792741,10.19556157,176.01,176.0,1.0]
[1730037792946,7.35186157,176.01,175.75,6.89089229]
[1730037793148,2.8457,175.89,175.76,14.76520644]
[1730037793343,5.688,176.0,175.77,1.04550644]
[1730037793344,4.44,175.9,175.77,1.04550644]
[1730037793550,4.44,175.9,175.78,2.85894449]
[1730037793754,7.2856,175.9,175.86,2.846]
[1730037793950,4.44,175.9,175.86,2.846]
[1730037794157,4.44,175.9,175.8,4.44]
[1730037794356,4.44,175.9,175.81,1.04576424]
[1730037794657,7.2856,175.9,175.83,2.8465]
[1730037794856,4.44,175.9,175.84,2.4073]
[1730037795559,4.44,175.9,175.86,2.846]
[1730037795560,2.8457,175.89,175.86,2.846]
[1730037796254,4.44,175.9,175.88,2.8458]
[1730037797655,4.44,175.9,175.89,2.8456]
[1730037797849,6.688,176.0,175.89,2.8456]
[1730037797850,4.44,175.93,175.89,2.8456]
[1730037798359,7.2851,175.93,175.89,2.8456]
[1730037798855,7.2851,175.93,175.87,2.8459]
[1730037799059,4.44,175.93,175.85,1.2595]
[1730037799260,2.8452,175.92,175.85,1.2595]
[1730037799558,1.0,176.0,175.85,1.2595]
[1730037799856,4.44,175.99,175.85,1.2595]
[1730037800065,4.44,175.99,175.91,2.8452]
[1730037800556,2.8449,175.94,175.91,2.8452]
[1730037800754,7.2849,175.94,175.91,2.8452]
[1730037804662,4.44,175.94,175.91,2.8452]
[1730037804859,4.44,175.94,175.85,1.2595]
[1730037805660,4.44,175.94,175.88,2.8458]
[1730037805855,2.8454,175.91,175.88,2.8458]
[1730037809363,2.8454,175.91,175.85,1.2595]
[1730037809364,4.44,175.94,175.85,1.2595]
[1730037809559,2.8452,175.92,175.89,2.8455]
[1730037810862,4.44,175.94,175.89,2.8455]
[1730037811951,1.0,176.0,175.9,2.8454]
[1730037812160,4.44,175.99,175.85,1.2595]
[1730037812762,2.845,175.93,175.9,2.8454]
[1730037814560,7.2849,175.94,175.87,2.8458]
[1730037814761,7.2849,175.94,175.85,1.2595]
[1730037815170,4.44,175.94,175.85,1.2595]
[1730037815874,2.8454,175.91,175.88,2.8457]
[1730037816870,1.0,176.0,175.85,1.2595]
[1730037816871,4.44,175.9,175.86,2.846]